[Event "*** Titled Tuesday Blitz"]
[Site "Chess.com"]
[Date "2020.04.14"]
[Round "4"]
[White "Natalya_Buksa"]
[Black "Chessalary"]
[Result "0-1"]
[WhiteElo "2457"]
[BlackElo "2296"]
[TimeControl "180+1"]
[EndTime "10:40:39 PDT"]
[Termination "Chessalary won by resignation"]

1. e4 {[%clk 0:03:00.9]} 1... c5 {[%clk 0:02:59.8]} 2. Nf3 {[%clk 0:03:00.4]}
2... d6 {[%clk 0:02:59.9]} 3. d4 {[%clk 0:02:58.4]} 3... cxd4 {[%clk 0:03:00.8]}
4. Nxd4 {[%clk 0:02:58.9]} 4... Nf6 {[%clk 0:03:01.2]} 5. Nc3 {[%clk 0:02:59.8]}
5... a6 {[%clk 0:03:01]} 6. Bd3 {[%clk 0:03:00.3]} 6... e5 {[%clk 0:02:57.6]} 7.
Nde2 {[%clk 0:03:00]} 7... Be6 {[%clk 0:02:57.3]} 8. O-O {[%clk 0:02:58.6]} 8...
Be7 {[%clk 0:02:57.4]} 9. f4 {[%clk 0:02:57.3]} 9... b5 {[%clk 0:02:51.2]} 10.
Kh1 {[%clk 0:02:53.1]} 10... O-O {[%clk 0:02:49.7]} 11. Ng3 {[%clk 0:02:47.4]}
11... Nbd7 {[%clk 0:02:38.1]} 12. f5 {[%clk 0:02:45.3]} 12... Bc4 {[%clk
0:02:38]} 13. Bxc4 {[%clk 0:02:44.8]} 13... bxc4 {[%clk 0:02:38.9]} 14. Be3
{[%clk 0:02:41]} 14... Rb8 {[%clk 0:02:34.3]} 15. b3 {[%clk 0:02:39.8]} 15...
cxb3 {[%clk 0:02:32.6]} 16. cxb3 {[%clk 0:02:38.2]} 16... Qa5 {[%clk 0:02:27.8]}
17. Qd2 {[%clk 0:02:32.7]} 17... Rfc8 {[%clk 0:01:57.4]} 18. Nd5 {[%clk
0:02:13.2]} 18... Qxd2 {[%clk 0:01:56.7]} 19. Nxe7+ {[%clk 0:02:13.3]} 19... Kf8
{[%clk 0:01:56.8]} 20. Ng6+ {[%clk 0:02:14.2]} 20... hxg6 {[%clk 0:01:54.3]} 21.
Bxd2 {[%clk 0:02:15.1]} 21... gxf5 {[%clk 0:01:52.3]} 22. Rxf5 {[%clk
0:01:53.9]} 22... g6 {[%clk 0:01:50.3]} 23. Rff1 {[%clk 0:01:53]} 23... Ke7
{[%clk 0:01:49.1]} 24. Bc1 {[%clk 0:01:52.1]} 24... Rc2 {[%clk 0:01:45.6]} 25.
Ba3 {[%clk 0:01:52.3]} 25... Ng4 {[%clk 0:01:38]} 26. Kg1 {[%clk 0:01:35.3]}
26... Ne3 {[%clk 0:01:28.5]} 27. Rf2 {[%clk 0:01:35.3]} 27... Rxf2 {[%clk
0:01:28.9]} 28. Kxf2 {[%clk 0:01:34.7]} 28... Nc2 {[%clk 0:01:29.8]} 29. Bxd6+
{[%clk 0:01:31]} 29... Kxd6 {[%clk 0:01:28.9]} 30. Rd1+ {[%clk 0:01:31.9]} 30...
Ke6 {[%clk 0:01:27.6]} 31. Ne2 {[%clk 0:01:31.3]} 31... Nc5 {[%clk 0:01:14.1]}
32. Kf3 {[%clk 0:01:22.9]} 32... Rc8 {[%clk 0:01:02]} 33. g4 {[%clk 0:01:12.8]}
33... f5 {[%clk 0:00:52.3]} 34. gxf5+ {[%clk 0:01:10.9]} 34... gxf5 {[%clk
0:00:53.2]} 35. exf5+ {[%clk 0:01:08.7]} 35... Kxf5 {[%clk 0:00:54.1]} 36. b4
{[%clk 0:00:52.8]} 36... Ne6 {[%clk 0:00:47.3]} 37. Rd6 {[%clk 0:00:52.1]} 37...
Ncd4+ {[%clk 0:00:46.4]} 38. Nxd4+ {[%clk 0:00:51.3]} 38... Nxd4+ {[%clk
0:00:47.3]} 39. Ke3 {[%clk 0:00:50.4]} 39... Rc3+ {[%clk 0:00:46.7]} 40. Kd2
{[%clk 0:00:49.2]} 40... Rc2+ {[%clk 0:00:45.9]} 41. Ke3 {[%clk 0:00:47.8]}
41... Rxa2 {[%clk 0:00:44.6]} 42. h4 {[%clk 0:00:48.2]} 42... Ra3+ {[%clk
0:00:42.5]} 43. Kf2 {[%clk 0:00:47.5]} 43... Kf4 {[%clk 0:00:39.5]} 44. h5
{[%clk 0:00:47.5]} 44... Ra2+ {[%clk 0:00:39.4]} 45. Kf1 {[%clk 0:00:47.6]}
45... Nf5 {[%clk 0:00:36.5]} 46. Re6 {[%clk 0:00:46.2]} 46... Kf3 {[%clk
0:00:36.1]} 47. Ke1 {[%clk 0:00:45.8]} 47... Ne3 {[%clk 0:00:34.6]} 48. Rf6+
{[%clk 0:00:44.9]} 48... Kg4 {[%clk 0:00:34.1]} 49. h6 {[%clk 0:00:44.9]} 49...
Rh2 {[%clk 0:00:25.4]} 50. Rxa6 {[%clk 0:00:43.4]} 50... e4 {[%clk 0:00:23.9]}
51. b5 {[%clk 0:00:40.1]} 51... Nc4 {[%clk 0:00:17.7]} 52. Rf6 {[%clk
0:00:36.4]} 52... e3 {[%clk 0:00:16.1]} 53. b6 {[%clk 0:00:34.9]} 53... e2
{[%clk 0:00:14.3]} 54. b7 {[%clk 0:00:20.2]} 54... Ne5 {[%clk 0:00:14.6]} 55.
Rf2 {[%clk 0:00:16.1]} 55... Nd3+ {[%clk 0:00:13.4]} 56. Kxe2 {[%clk 0:00:16.3]}
56... Rxf2+ {[%clk 0:00:13.6]} 57. Kxd3 {[%clk 0:00:16.1]} 57... Rf8 {[%clk
0:00:13.1]} 58. Kd4 {[%clk 0:00:16]} 58... Rb8 {[%clk 0:00:13]} 59. Ke5 {[%clk
0:00:16.5]} 59... Kg5 {[%clk 0:00:11.5]} 60. Kd6 {[%clk 0:00:16.3]} 60... Rxb7
{[%clk 0:00:11]} 0-1

[Event "*** Titled Tuesday Blitz"]
[Site "Chess.com"]
[Date "2020.04.14"]
[Round "4"]
[White "ChessNinja48"]
[Black "slowdgehammer"]
[Result "0-1"]
[WhiteElo "2137"]
[BlackElo "2355"]
[TimeControl "180+1"]
[EndTime "10:40:39 PDT"]
[Termination "slowdgehammer won by resignation"]

1. d4 {[%clk 0:03:00.1]} 1... Nf6 {[%clk 0:02:59.6]} 2. Nf3 {[%clk 0:02:59.6]}
2... g6 {[%clk 0:02:58.3]} 3. c4 {[%clk 0:02:59.1]} 3... Bg7 {[%clk 0:02:58.2]}
4. Nc3 {[%clk 0:02:58.4]} 4... d6 {[%clk 0:02:58.5]} 5. e4 {[%clk 0:02:56.9]}
5... O-O {[%clk 0:02:58]} 6. h3 {[%clk 0:02:57.1]} 6... Nbd7 {[%clk 0:02:56.9]}
7. Be2 {[%clk 0:02:55.4]} 7... e5 {[%clk 0:02:56.4]} 8. d5 {[%clk 0:02:55.4]}
8... Nc5 {[%clk 0:02:56.1]} 9. Qc2 {[%clk 0:02:53.2]} 9... a5 {[%clk 0:02:56.5]}
10. Be3 {[%clk 0:02:53.1]} 10... Nh5 {[%clk 0:02:43.7]} 11. g3 {[%clk 0:02:47]}
11... f5 {[%clk 0:02:38.6]} 12. Nd2 {[%clk 0:01:33.1]} 12... Nf6 {[%clk
0:02:30.7]} 13. O-O-O {[%clk 0:01:28.4]} 13... Qe7 {[%clk 0:02:11.5]} 14. f3
{[%clk 0:01:19.3]} 14... Nh5 {[%clk 0:01:57.1]} 15. Rdg1 {[%clk 0:00:50.1]}
15... f4 {[%clk 0:01:53.8]} 16. Bxc5 {[%clk 0:00:49.9]} 16... dxc5 {[%clk
0:01:53.4]} 17. g4 {[%clk 0:00:50.3]} 17... Ng3 {[%clk 0:01:53.1]} 18. Rh2
{[%clk 0:00:50.3]} 18... Bd7 {[%clk 0:01:43.5]} 19. h4 {[%clk 0:00:45.4]} 19...
a4 {[%clk 0:01:43.5]} 20. a3 {[%clk 0:00:44.9]} 20... Ra6 {[%clk 0:01:27.4]} 21.
Bd1 {[%clk 0:00:39]} 21... Qe8 {[%clk 0:01:25.6]} 22. Kb1 {[%clk 0:00:20.8]}
22... Kh8 {[%clk 0:01:23.4]} 23. Ka2 {[%clk 0:00:20.1]} 23... h5 {[%clk
0:01:23.2]} 24. g5 {[%clk 0:00:18.9]} 24... Qa8 {[%clk 0:01:05.5]} 25. Ndb1
{[%clk 0:00:18.6]} 25... Qa7 {[%clk 0:01:04.8]} 26. Ne2 {[%clk 0:00:18.7]} 26...
Nxe2 {[%clk 0:00:50.9]} 27. Bxe2 {[%clk 0:00:19.6]} 27... Rb8 {[%clk 0:00:51]}
28. Nc3 {[%clk 0:00:19.8]} 28... Ra5 {[%clk 0:00:51]} 29. Rc1 {[%clk 0:00:19.6]}
29... Bf8 {[%clk 0:00:48.4]} 30. Bd3 {[%clk 0:00:19.8]} 30... c6 {[%clk
0:00:47.3]} 31. Qd1 {[%clk 0:00:18.6]} 31... b5 {[%clk 0:00:45]} 32. dxc6 {[%clk
0:00:16.5]} 32... Bxc6 {[%clk 0:00:44.9]} 33. cxb5 {[%clk 0:00:16.5]} 33... Be8
{[%clk 0:00:44.8]} 34. Bc4 {[%clk 0:00:16.5]} 34... Bf7 {[%clk 0:00:44.1]} 35.
Rg2 {[%clk 0:00:16.4]} 35... Bxc4+ {[%clk 0:00:39.5]} 36. Ka1 {[%clk 0:00:16.3]}
36... Qf7 {[%clk 0:00:37.8]} 37. Rd2 {[%clk 0:00:15.9]} 37... Ra7 {[%clk
0:00:32.9]} 38. Nd5 {[%clk 0:00:14.4]} 38... Bb3 {[%clk 0:00:31.4]} 39. Qg1
{[%clk 0:00:13.5]} 39... Rxb5 {[%clk 0:00:29.8]} 40. Nf6 {[%clk 0:00:12.9]}
40... Rab7 {[%clk 0:00:20.7]} 41. Rd8 {[%clk 0:00:12.7]} 41... Kg7 {[%clk
0:00:20.6]} 42. Qe1 {[%clk 0:00:10.5]} 42... Be6 {[%clk 0:00:18.8]} 43. Rc2
{[%clk 0:00:10.7]} 43... Rb3 {[%clk 0:00:18.7]} 44. Qe2 {[%clk 0:00:10.3]} 44...
c4 {[%clk 0:00:18.9]} 45. Ne8+ {[%clk 0:00:06]} 45... Kh8 {[%clk 0:00:17.6]} 46.
Nd6 {[%clk 0:00:06.4]} 46... Qc7 {[%clk 0:00:15.4]} 47. Nxb7 {[%clk 0:00:06.5]}
47... Qxb7 {[%clk 0:00:14.2]} 48. Rxf8+ {[%clk 0:00:06.4]} 48... Kg7 {[%clk
0:00:14.9]} 49. Rf6 {[%clk 0:00:06.8]} 49... Qd7 {[%clk 0:00:14]} 50. Rd2 {[%clk
0:00:05.9]} 50... Rd3 {[%clk 0:00:13.4]} 51. Rxd3 {[%clk 0:00:06]} 51... cxd3
{[%clk 0:00:13.8]} 52. Qd2 {[%clk 0:00:06.4]} 52... Bb3 {[%clk 0:00:12]} 53. Kb1
{[%clk 0:00:05.7]} 53... Qd4 {[%clk 0:00:12]} 54. Rc6 {[%clk 0:00:03.5]} 54...
Qe3 {[%clk 0:00:11]} 55. Kc1 {[%clk 0:00:01.8]} 55... Qg1+ {[%clk 0:00:08]} 0-1

[Event "*** Titled Tuesday Blitz"]
[Site "Chess.com"]
[Date "2020.04.14"]
[Round "4"]
[White "Disturbed01"]
[Black "Rsnr"]
[Result "0-1"]
[WhiteElo "2675"]
[BlackElo "2875"]
[TimeControl "180+1"]
[EndTime "10:40:40 PDT"]
[Termination "Rsnr won by checkmate"]

1. d4 {[%clk 0:03:00.9]} 1... Nf6 {[%clk 0:02:59.8]} 2. c4 {[%clk 0:03:01.1]}
2... e6 {[%clk 0:03:00.4]} 3. Nc3 {[%clk 0:03:01.6]} 3... Bb4 {[%clk 0:03:00.9]}
4. Qc2 {[%clk 0:03:01.9]} 4... O-O {[%clk 0:03:01.3]} 5. Nf3 {[%clk 0:03:02.1]}
5... d5 {[%clk 0:03:00.9]} 6. cxd5 {[%clk 0:03:01.8]} 6... exd5 {[%clk
0:03:01.8]} 7. Bf4 {[%clk 0:03:00.8]} 7... c6 {[%clk 0:02:52.4]} 8. e3 {[%clk
0:02:57.7]} 8... Bg4 {[%clk 0:02:26.6]} 9. Ne5 {[%clk 0:02:57.1]} 9... Be6
{[%clk 0:02:26.6]} 10. Bd3 {[%clk 0:02:57.2]} 10... Nbd7 {[%clk 0:02:26.5]} 11.
h3 {[%clk 0:02:54.7]} 11... h6 {[%clk 0:02:22]} 12. O-O {[%clk 0:02:54.3]} 12...
Nxe5 {[%clk 0:02:19.6]} 13. Bxe5 {[%clk 0:02:53.9]} 13... Nd7 {[%clk 0:02:20.4]}
14. Bg3 {[%clk 0:02:49.7]} 14... Re8 {[%clk 0:02:20.2]} 15. a3 {[%clk
0:02:44.7]} 15... Bf8 {[%clk 0:02:16.6]} 16. b4 {[%clk 0:02:44.5]} 16... Nb6
{[%clk 0:02:10.7]} 17. Rad1 {[%clk 0:02:37.8]} 17... a5 {[%clk 0:02:09.4]} 18.
Rb1 {[%clk 0:02:26]} 18... axb4 {[%clk 0:02:08.7]} 19. axb4 {[%clk 0:02:26.9]}
19... Qd7 {[%clk 0:01:51.9]} 20. Rfd1 {[%clk 0:02:18.8]} 20... Ra3 {[%clk
0:01:50.7]} 21. b5 {[%clk 0:02:04.8]} 21... Nc4 {[%clk 0:01:30.6]} 22. Bxc4
{[%clk 0:02:01.9]} 22... dxc4 {[%clk 0:01:30.9]} 23. e4 {[%clk 0:01:56.9]} 23...
Rb3 {[%clk 0:01:28.4]} 24. bxc6 {[%clk 0:01:55.4]} 24... bxc6 {[%clk 0:01:25.6]}
25. Ra1 {[%clk 0:01:54.9]} 25... Qb7 {[%clk 0:01:22.2]} 26. Ra2 {[%clk
0:01:52.3]} 26... Ba3 {[%clk 0:01:09.8]} 27. d5 {[%clk 0:01:41.9]} 27... cxd5
{[%clk 0:01:09.5]} 28. exd5 {[%clk 0:01:42.8]} 28... Bd7 {[%clk 0:01:09]} 29.
Ne2 {[%clk 0:01:37.5]} 29... Rb2 {[%clk 0:00:59.8]} 30. Rxb2 {[%clk 0:01:36.4]}
30... Qxb2 {[%clk 0:01:00.7]} 31. Qxb2 {[%clk 0:01:07.8]} 31... Bxb2 {[%clk
0:01:01.6]} 32. Nd4 {[%clk 0:01:04.9]} 32... Ba4 {[%clk 0:00:57.2]} 33. Rd2
{[%clk 0:01:05.2]} 33... Bc3 {[%clk 0:00:56.7]} 34. Ra2 {[%clk 0:01:04.6]} 34...
Bb3 {[%clk 0:00:40]} 35. Ne2 {[%clk 0:00:20.4]} 35... Bxa2 {[%clk 0:00:13]} 36.
Nxc3 {[%clk 0:00:20.5]} 36... Bb3 {[%clk 0:00:13.7]} 37. d6 {[%clk 0:00:20.5]}
37... Rd8 {[%clk 0:00:12.9]} 38. f3 {[%clk 0:00:20.5]} 38... f6 {[%clk
0:00:13.3]} 39. Kf2 {[%clk 0:00:21]} 39... Kf7 {[%clk 0:00:14]} 40. Ke3 {[%clk
0:00:21.6]} 40... Ke6 {[%clk 0:00:14.7]} 41. Kd4 {[%clk 0:00:22.3]} 41... Ra8
{[%clk 0:00:14.7]} 42. Ne4 {[%clk 0:00:22.8]} 42... Kd7 {[%clk 0:00:10.7]} 43.
Nc5+ {[%clk 0:00:23.3]} 43... Kc6 {[%clk 0:00:11.4]} 44. Ne6 {[%clk 0:00:22]}
44... g5 {[%clk 0:00:08.7]} 45. Kc3 {[%clk 0:00:19.9]} 45... Ra2 {[%clk
0:00:08.5]} 46. Nd4+ {[%clk 0:00:19.6]} 46... Kd7 {[%clk 0:00:08.1]} 47. Nf5
{[%clk 0:00:14]} 47... Rxg2 {[%clk 0:00:07.8]} 48. Kd4 {[%clk 0:00:13.4]} 48...
Rd2+ {[%clk 0:00:05.8]} 49. Ke4 {[%clk 0:00:12.6]} 49... Bc2+ {[%clk 0:00:05.2]}
50. Ke3 {[%clk 0:00:12.3]} 50... Rd3+ {[%clk 0:00:05.5]} 51. Ke2 {[%clk
0:00:12.9]} 51... Bd1+ {[%clk 0:00:04.1]} 52. Ke1 {[%clk 0:00:12.2]} 52... Bxf3
{[%clk 0:00:04.4]} 53. Nxh6 {[%clk 0:00:11.8]} 53... c3 {[%clk 0:00:04.7]} 54.
Ng8 {[%clk 0:00:11.1]} 54... c2 {[%clk 0:00:04.6]} 55. Nxf6+ {[%clk 0:00:11.7]}
55... Ke6 {[%clk 0:00:05.3]} 56. d7 {[%clk 0:00:12]} 56... c1=Q+ {[%clk
0:00:05.6]} 57. Kf2 {[%clk 0:00:12.9]} 57... Qd2+ {[%clk 0:00:05.5]} 58. Kg1
{[%clk 0:00:13.8]} 58... Qd1+ {[%clk 0:00:05.9]} 59. Kh2 {[%clk 0:00:14.7]}
59... Qe2+ {[%clk 0:00:06.6]} 60. Bf2 {[%clk 0:00:15.2]} 60... Qxf2# {[%clk
0:00:06.7]} 0-1

[Event "*** Titled Tuesday Blitz"]
[Site "Chess.com"]
[Date "2020.04.14"]
[Round "4"]
[White "chessintuit"]
[Black "fugadelafuga"]
[Result "0-1"]
[WhiteElo "2609"]
[BlackElo "2388"]
[TimeControl "180+1"]
[EndTime "10:40:41 PDT"]
[Termination "fugadelafuga won by checkmate"]

1. e4 {[%clk 0:03:00.9]} 1... c5 {[%clk 0:02:58.2]} 2. Nf3 {[%clk 0:03:01.1]}
2... Nc6 {[%clk 0:02:57.3]} 3. Bb5 {[%clk 0:02:58.9]} 3... g6 {[%clk 0:02:56.6]}
4. O-O {[%clk 0:02:59]} 4... Bg7 {[%clk 0:02:56.7]} 5. Re1 {[%clk 0:02:58.3]}
5... Nf6 {[%clk 0:02:56.6]} 6. Nc3 {[%clk 0:02:58.4]} 6... d6 {[%clk 0:02:48]}
7. e5 {[%clk 0:02:48.7]} 7... dxe5 {[%clk 0:02:32.1]} 8. Nxe5 {[%clk 0:02:49.6]}
8... Bd7 {[%clk 0:02:32.1]} 9. Bxc6 {[%clk 0:02:43.1]} 9... Bxc6 {[%clk
0:02:23.3]} 10. Nxc6 {[%clk 0:02:42.5]} 10... bxc6 {[%clk 0:02:24.2]} 11. d3
{[%clk 0:02:42.1]} 11... O-O {[%clk 0:02:22.4]} 12. Be3 {[%clk 0:02:42.1]} 12...
Qd6 {[%clk 0:02:15]} 13. Qd2 {[%clk 0:02:39.5]} 13... Rfd8 {[%clk 0:01:59.1]}
14. Rad1 {[%clk 0:02:26.2]} 14... e5 {[%clk 0:01:45.4]} 15. Bg5 {[%clk
0:02:22.1]} 15... Rab8 {[%clk 0:01:34.6]} 16. b3 {[%clk 0:02:17.4]} 16... Qd4
{[%clk 0:01:33.5]} 17. Bxf6 {[%clk 0:01:57.9]} 17... Bxf6 {[%clk 0:01:34.4]} 18.
Re4 {[%clk 0:01:57.5]} 18... Qd6 {[%clk 0:01:27.4]} 19. Rc4 {[%clk 0:01:57.5]}
19... Rb4 {[%clk 0:01:02.1]} 20. Ne4 {[%clk 0:01:55.5]} 20... Qe7 {[%clk
0:01:01.8]} 21. Nxf6+ {[%clk 0:01:50]} 21... Qxf6 {[%clk 0:00:59.6]} 22. Rxc5
{[%clk 0:01:47.5]} 22... Rbd4 {[%clk 0:01:00]} 23. Qc3 {[%clk 0:01:45.3]} 23...
R8d6 {[%clk 0:00:53.4]} 24. Re1 {[%clk 0:01:39.5]} 24... e4 {[%clk 0:00:49.6]}
25. Re3 {[%clk 0:00:54.4]} 25... exd3 {[%clk 0:00:43.8]} 26. cxd3 {[%clk
0:00:54.7]} 26... Qd8 {[%clk 0:00:16.2]} 27. h3 {[%clk 0:00:54.1]} 27... Rxd3
{[%clk 0:00:15.8]} 28. Rxd3 {[%clk 0:00:50.5]} 28... Rxd3 {[%clk 0:00:16.7]} 29.
Qe5 {[%clk 0:00:34.4]} 29... Rd1+ {[%clk 0:00:16.4]} 30. Kh2 {[%clk 0:00:34.2]}
30... Rd5 {[%clk 0:00:16.3]} 31. Rxd5 {[%clk 0:00:29.5]} 31... cxd5 {[%clk
0:00:17.2]} 32. Qd4 {[%clk 0:00:29.8]} 32... Qd6+ {[%clk 0:00:16]} 33. g3 {[%clk
0:00:29.1]} 33... a6 {[%clk 0:00:16]} 34. Kg2 {[%clk 0:00:29.5]} 34... f6 {[%clk
0:00:16.3]} 35. Kf3 {[%clk 0:00:29.7]} 35... Kf7 {[%clk 0:00:16.6]} 36. Ke2
{[%clk 0:00:29]} 36... Ke6 {[%clk 0:00:16.7]} 37. Kd3 {[%clk 0:00:27.3]} 37...
Qc6 {[%clk 0:00:16.1]} 38. Qe3+ {[%clk 0:00:23.8]} 38... Kf7 {[%clk 0:00:15.9]}
39. Qa7+ {[%clk 0:00:23.2]} 39... Ke6 {[%clk 0:00:15.5]} 40. Qxh7 {[%clk
0:00:19.4]} 40... Qb5+ {[%clk 0:00:15.6]} 41. Ke3 {[%clk 0:00:19.4]} 41... Qc5+
{[%clk 0:00:14.5]} 42. Kf3 {[%clk 0:00:18.9]} 42... Qc3+ {[%clk 0:00:14.6]} 43.
Kg2 {[%clk 0:00:19.1]} 43... Qc2 {[%clk 0:00:14.5]} 44. Qg8+ {[%clk 0:00:18.7]}
44... Kd6 {[%clk 0:00:13.1]} 45. Qd8+ {[%clk 0:00:18.9]} 45... Ke6 {[%clk
0:00:13.3]} 46. Qb6+ {[%clk 0:00:18.7]} 46... Kf5 {[%clk 0:00:13.1]} 47. Qxa6
{[%clk 0:00:18.7]} 47... d4 {[%clk 0:00:13.4]} 48. Qb5+ {[%clk 0:00:18.2]} 48...
Ke4 {[%clk 0:00:12.8]} 49. Qe8+ {[%clk 0:00:17.9]} 49... Kd5 {[%clk 0:00:12.8]}
50. Qd7+ {[%clk 0:00:17.9]} 50... Ke5 {[%clk 0:00:12.9]} 51. Qe7+ {[%clk
0:00:17.4]} 51... Kd5 {[%clk 0:00:13.1]} 52. Qf7+ {[%clk 0:00:17.7]} 52... Ke5
{[%clk 0:00:13.1]} 53. Qc4 {[%clk 0:00:12.1]} 53... d3 {[%clk 0:00:11.2]} 54.
Kf3 {[%clk 0:00:08.9]} 54... Qxc4 {[%clk 0:00:08.3]} 55. bxc4 {[%clk 0:00:09.8]}
55... Kd4 {[%clk 0:00:09.2]} 56. c5 {[%clk 0:00:10.2]} 56... Kc3 {[%clk
0:00:09.6]} 57. c6 {[%clk 0:00:10.4]} 57... d2 {[%clk 0:00:10]} 58. c7 {[%clk
0:00:09.9]} 58... d1=Q+ {[%clk 0:00:10]} 59. Kg2 {[%clk 0:00:10.8]} 59... Qd7
{[%clk 0:00:10.3]} 60. a4 {[%clk 0:00:10.7]} 60... Qxc7 {[%clk 0:00:10.5]} 61.
a5 {[%clk 0:00:11.6]} 61... Qxa5 {[%clk 0:00:10.5]} 62. h4 {[%clk 0:00:11.7]}
62... Qd5+ {[%clk 0:00:10.7]} 63. Kh2 {[%clk 0:00:11.5]} 63... Qf3 {[%clk
0:00:11]} 64. h5 {[%clk 0:00:12.4]} 64... gxh5 {[%clk 0:00:10.3]} 65. Kh3 {[%clk
0:00:12.2]} 65... Kd2 {[%clk 0:00:10.3]} 66. Kh4 {[%clk 0:00:13.1]} 66... Qg4#
{[%clk 0:00:10.2]} 0-1

[Event "*** Titled Tuesday Blitz"]
[Site "Chess.com"]
[Date "2020.04.14"]
[Round "4"]
[White "AtabayevSaparmyrat"]
[Black "SahaNeelash"]
[Result "0-1"]
[WhiteElo "2767"]
[BlackElo "2567"]
[TimeControl "180+1"]
[EndTime "10:40:42 PDT"]
[Termination "SahaNeelash won on time"]

1. e4 {[%clk 0:03:00]} 1... c6 {[%clk 0:02:59.4]} 2. d4 {[%clk 0:02:59.3]} 2...
d5 {[%clk 0:02:59.9]} 3. Nc3 {[%clk 0:02:59.6]} 3... dxe4 {[%clk 0:02:59.8]} 4.
Nxe4 {[%clk 0:03:00.5]} 4... Nf6 {[%clk 0:03:00.4]} 5. Ng3 {[%clk 0:02:59.8]}
5... e5 {[%clk 0:02:56.6]} 6. Be3 {[%clk 0:02:43]} 6... Ng4 {[%clk 0:02:22.6]}
7. Nf3 {[%clk 0:02:40.4]} 7... Nxe3 {[%clk 0:02:17.6]} 8. fxe3 {[%clk
0:02:40.2]} 8... Nd7 {[%clk 0:02:17.1]} 9. Bc4 {[%clk 0:02:37.1]} 9... Be7
{[%clk 0:02:11.8]} 10. O-O {[%clk 0:02:29.3]} 10... O-O {[%clk 0:01:57.4]} 11.
c3 {[%clk 0:02:15.6]} 11... exd4 {[%clk 0:01:51.4]} 12. exd4 {[%clk 0:02:15.4]}
12... Nb6 {[%clk 0:01:48.7]} 13. Bb3 {[%clk 0:02:01.6]} 13... Nd5 {[%clk
0:01:48]} 14. Qd3 {[%clk 0:01:53]} 14... Nf6 {[%clk 0:01:38.4]} 15. Rae1 {[%clk
0:01:49.2]} 15... Bd6 {[%clk 0:01:36]} 16. Ne5 {[%clk 0:01:46.9]} 16... Bxe5
{[%clk 0:01:28.2]} 17. Rxe5 {[%clk 0:01:45.1]} 17... Re8 {[%clk 0:01:26.3]} 18.
Rxe8+ {[%clk 0:00:53.1]} 18... Qxe8 {[%clk 0:01:27.2]} 19. Nh5 {[%clk
0:00:36.3]} 19... Nxh5 {[%clk 0:01:09.3]} 20. Bxf7+ {[%clk 0:00:35.2]} 20...
Qxf7 {[%clk 0:01:09.8]} 21. Rxf7 {[%clk 0:00:36.1]} 21... Kxf7 {[%clk
0:01:10.2]} 22. Qxh7 {[%clk 0:00:36]} 22... Nf6 {[%clk 0:01:09.5]} 23. Qd3
{[%clk 0:00:35.7]} 23... Be6 {[%clk 0:01:07.7]} 24. b3 {[%clk 0:00:35.7]} 24...
Re8 {[%clk 0:01:03.2]} 25. h3 {[%clk 0:00:36]} 25... Bd5 {[%clk 0:01:00]} 26. c4
{[%clk 0:00:33.5]} 26... Be4 {[%clk 0:00:56.1]} 27. Qg3 {[%clk 0:00:33.7]} 27...
Re7 {[%clk 0:00:54.6]} 28. Qf4 {[%clk 0:00:29.6]} 28... a6 {[%clk 0:00:43.9]}
29. g4 {[%clk 0:00:29.7]} 29... Kg8 {[%clk 0:00:42.2]} 30. Qb8+ {[%clk
0:00:28.4]} 30... Ne8 {[%clk 0:00:40.5]} 31. Qd8 {[%clk 0:00:24.6]} 31... Kf7
{[%clk 0:00:39.8]} 32. d5 {[%clk 0:00:21.4]} 32... cxd5 {[%clk 0:00:39.3]} 33.
cxd5 {[%clk 0:00:22.3]} 33... Nf6 {[%clk 0:00:39.1]} 34. d6 {[%clk 0:00:20.1]}
34... Rd7 {[%clk 0:00:39]} 35. Qb8 {[%clk 0:00:20.1]} 35... Ne8 {[%clk 0:00:36]}
36. Qc8 {[%clk 0:00:15.4]} 36... Bc6 {[%clk 0:00:34.9]} 37. Qb8 {[%clk
0:00:12.4]} 37... Rxd6 {[%clk 0:00:31.6]} 38. Qa7 {[%clk 0:00:12.4]} 38... Rd1+
{[%clk 0:00:30.1]} 39. Kf2 {[%clk 0:00:12.8]} 39... Rd2+ {[%clk 0:00:29.8]} 40.
Ke3 {[%clk 0:00:12.4]} 40... Rxa2 {[%clk 0:00:29.9]} 41. Qd4 {[%clk 0:00:11.1]}
41... Rg2 {[%clk 0:00:28.7]} 42. Qf4+ {[%clk 0:00:10.9]} 42... Ke7 {[%clk
0:00:29]} 43. Qe5+ {[%clk 0:00:10.9]} 43... Kd8 {[%clk 0:00:29.1]} 44. Qd4+
{[%clk 0:00:09.1]} 44... Kc8 {[%clk 0:00:29.5]} 45. h4 {[%clk 0:00:08.2]} 45...
Rg3+ {[%clk 0:00:28.7]} 46. Kf4 {[%clk 0:00:06.7]} 46... Rxb3 {[%clk 0:00:27.3]}
47. h5 {[%clk 0:00:05.5]} 47... Rb5 {[%clk 0:00:25.3]} 48. g5 {[%clk 0:00:05]}
48... Nc7 {[%clk 0:00:19.7]} 0-1